Cogmind - Beta 16 @@@ ROGUE MODE // 2025.12.29 @ 20:31:25 Player: Maulwurf Result: Destroyed by L-41 Fighter with Axe Performance ------------- Evolutions (3) 1500 Regions Visited (7) 1400 Robots Destroyed (33) 165 Value Destroyed (741) 741 Prototype IDs (26) 520 Alien Tech Used (0) 0 Bonus (325) 325 TOTAL SCORE: 4651 Bonus ------- Follower Combat Kills 25 Aligned with FarCom 300 Cogmind --------- Core Integrity 0/700 Matter 279/300 Energy 100/100 System Corruption 9% Temperature Cool (0) Movement Core (50) Location -7/Lower Caves Parts ------- > --- POWER (2) -------- (None) > --- PROPULSION (5) --- (None) > --- UTILITY (3) ------ (None) > --- WEAPON (3) ------- (None) > --- INVENTORY (5) ---- Flak Cannon Field Lobotomy Kit (2) Great Maul Mining Claw Peak State ------------ > --- POWER ------------ Deuterium Engine Light Nuclear Core > --- PROPULSION ------- Aluminum Leg Improved Carbon-fiber Leg > --- UTILITY ---------- Small Storage Unit Improved Terrain Scanner Advanced Terrain Scan Processor > --- WEAPON ----------- Heavy Flail Heavy Flail Great Maul > --- INVENTORY -------- Large Storage Unit Flak Cannon Missile Launcher Field Lobotomy Kit Great Maul Mining Claw [Rating: 30] Favorites ----------- Power Ion Engine Engine Ion Engine Power Core Light Nuclear Core Propulsion Aluminum Leg Leg Aluminum Leg Utility Small Storage Unit Device Improved Terrain Scanner Storage Small Storage Unit Processor Terrain Scan Processor Weapon Great Maul Energy Gun Small Laser Ballistic Gun Assault Rifle Ballistic Cannon Flak Cannon Launcher Missile Launcher Special Weapon Mining Laser Impact Weapon Great Maul Slashing Weapon Makeshift Axe Build | -11 -10 -10 -10 -9 -8 -7 -7 ------- Run | Yrd Mat Min Exi Min Mat Fac Low Slots Evolved 6 | . . . . . 4 2 . Power 1 | . . . . . . 1 . Propulsion 3 | . . . . . 2 1 . Utility 1 | . . . . . 1 . . Weapon 1 | . . . . . 1 . . Parts Attached 26 | 7 . . 1 2 11 3 2 Power 3 | 1 . . . . 1 1 . Engine 2 | 1 . . . . . 1 . Core 1 | . . . . . 1 . . Reactor . | . . . . . . . . Propulsion 5 | 2 . . . 1 . 1 1 Treads . | . . . . . . . . Leg 5 | 2 . . . 1 . 1 1 Wheel . | . . . . . . . . Hover . | . . . . . . . . Flight . | . . . . . . . . Utility 4 | 2 . . . . 1 1 . Device 1 | 1 . . . . . . . Storage 1 | 1 . . . . . . . Processor 2 | . . . . . 1 1 . Hackware . | . . . . . . . . Protection . | . . . . . . . . Artifact . | . . . . . . . . Weapon 14 | 2 . . 1 1 9 . 1 Energy Gun 1 | 1 . . . . . . . Energy Cannon . | . . . . . . . . Ballistic Gun 1 | 1 . . . . . . . Ballistic Cannon 1 | . . . . . 1 . . Launcher 2 | . . . . . 1 . 1 Special Weapon 2 | . . . 1 1 . . . Impact Weapon 5 | . . . . . 5 . . Slashing Weapon 2 | . . . . . 2 . . Piercing Weapon . | . . . . . . . . Special Melee Weapon . | . . . . . . . . Unidentified Prototypes . | . . . . . . . . Corrupted Parts 1 | . . . . . . . 1 System Corruption 9 | . . . . . . . 9 Parts Lost 12 | . . . . 2 2 1 7 Power 2 | . . . . . . . 2 Propulsion 5 | . . . . 1 1 1 2 Utility 2 | . . . . . . . 2 Weapon 3 | . . . . 1 1 . 1 Highest Loss Streak 8 | . . . . 2 1 1 8 To Critical Strikes . | . . . . . . . . Average Backups 5 | 1 2 2 2 6 7 6 5 Power 1 | . 1 1 1 1 1 . . Propulsion . | . . . . . . . . Utility 1 | . . . . 4 1 1 . Weapon 2 | . 1 1 1 . 3 4 3 Tool/Special . | . . . . . . . . Unused Backups 7 | 1 . . . 1 3 1 1 Power 2 | . . . . . 1 1 . Propulsion . | . . . . . . . . Utility 4 | . . . . 1 2 . 1 Weapon 1 | 1 . . . . . . . Tool/Special . | . . . . . . . . Average Slot Usage (%) 84 | . 100 100 100 100 76 70 41 Engine 7 | . 14 14 14 14 . 4 2 Core 4 | . . . . . 8 7 1 Leg 19 | . 28 28 28 28 13 12 5 Device 10 | . 14 14 14 14 9 7 . Storage 10 | . 14 14 14 14 9 7 4 Processor 4 | . . . . . 8 7 7 Energy Gun 6 | . 14 14 14 14 1 . . Ballistic Gun 5 | . 14 14 14 10 . . . Impact Weapon 11 | . . . . . 19 23 18 Peak Build Rating 30 | 9 9 9 18 18 25 30 29 Average Rating 16 | 7 9 9 9 10 20 26 16 On Entrance 12 | . 9 9 9 10 11 21 29 Avg Prop Armor Cover (%) . | . . . . . . . . Naked Turns 2 | . . . . . . . 2 Heaviest Build 30 | 14 14 14 14 20 27 30 30 Greatest Support 28 | 20 20 20 20 20 20 28 28 Greatest Overweight (x) 2 | 1 . . . 1 2 2 1 Average Overweight (x) . | . . . . . 1 1 . Largest Inventory Capacity 8 | 8 8 8 8 8 8 8 8 Average Capacity 7 | 7 8 8 8 8 8 8 6 Most Carried 8 | 5 2 2 4 8 8 8 7 Average Carried 5 | 1 2 2 2 7 7 6 5 Final Capacity 8 | 8 8 8 8 8 8 8 5 Final Carried 8 | 2 2 2 4 7 8 6 4 Class Distribution -------------------- 41% | Scavenger-Assassin 29% | Mutant 20% | Skirmisher 6% | Assassin Dominant Class ---------------- Mutant | -10/Materials Mutant | -10/Mines Mutant | -10/Exiles Skirmisher | -9/Mines Scavenger-Assassin | -8/Materials Scavenger-Assassin | -7/Factory Mutant | -7/Lower Caves Resources | -11 -10 -10 -10 -9 -8 -7 -7 ----------- Run | Yrd Mat Min Exi Min Mat Fac Low Matter Collected 725 | 300 . . 13 213 159 20 20 Remotely . | . . . . . . . . Salvage Created 996 | 124 . . . 88 484 214 86 Parts 45 | 14 . . . 17 9 3 2 Haulers Intercepted 1 | . . . . . . 1 . Recyclers Shooed 1 | . . . . . 1 . . Parts Field Recycled . | . . . . . . . . Retrieved Matter . | . . . . . . . . Parts Self-Destructed . | . . . . . . . . Prevented 1 | . . . . . . . 1 Parts Restored . | . . . . . . . . Kills | -11 -10 -10 -10 -9 -8 -7 -7 ------- Run | Yrd Mat Min Exi Min Mat Fac Low Combat Hostiles Destroyed 19 | . . . . 5 9 3 2 Melee 5 | . . . . . 3 2 . Guns 5 | . . . . 5 . . . AOE 1 | . . . . . . . 1 Classes Destroyed 11 | 1 . . . 2 5 3 . Worker 1 | . . . . . 1 . . Builder 3 | . . . . 1 1 1 . Tunneler 6 | 6 . . . . . . . Hauler 1 | . . . . . . 1 . Recycler 2 | . . . . . 2 . . Watcher 1 | . . . . . . 1 . Swarmer 8 | . . . . 5 3 . . Grunt 7 | . . . . . 3 2 2 Sentry 2 | . . . . . 2 . . Hunter 1 | . . . . . 1 . . Programmer 1 | . . . . . . 1 . Best Kill Streak 3 | 1 . . . 3 2 2 1 Combat Bots Only 3 | . . . . 2 3 2 1 Max Kills in Single Turn 1 | 1 . . . 1 1 1 1 Gunslinging . | . . . . . . . . Exploded 1 | . . . . . . . 1 Melee 1 | . . . . . 1 1 . Uniques/NPCs Destroyed . | . . . . . . . . Combat | -11 -10 -10 -10 -9 -8 -7 -7 -------- Run | Yrd Mat Min Exi Min Mat Fac Low Hostile Shots Fired 161 | . 8 . . 37 44 13 59 Missed 50 | . 4 . . 15 13 5 13 Hits 111 | . 4 . . 22 31 8 46 Melee 28 | . . . . 3 . . 25 Projectile 83 | . 4 . . 19 31 8 21 Critical Strikes 7 | . . . . . . 2 5 Part Disruptions 1 | . . . . . . 1 . Damage Taken 2287 | . 27 . . 386 400 119 1355 Core 887 | . . . . 107 78 47 655 Absorbed by Shields . | . . . . . . . . Core Remaining (%) 80 | 100 . . . 57 85 . . Volleys Fired 39 | 15 3 . . 13 5 . 3 Largest 3 | 2 2 . . 2 3 . 1 Hottest 77 | 60 60 . . 60 77 . 36 Shots Fired 71 | 28 6 . . 25 10 . 2 Gun 62 | 28 6 . . 23 5 . . Cannon 4 | . . . . . 4 . . Launcher 2 | . . . . . . . 2 Special 3 | . . . . 2 1 . . Kinetic 33 | 15 3 . . 11 4 . . Thermal 33 | 13 3 . . 12 5 . . Explosive 2 | . . . . . . . 2 Electromagnetic . | . . . . . . . . Robot Hit Streak 5 | 5 1 . . 5 4 . 5 Robot Miss Streak 3 | 2 3 . . 3 3 . . Penetration Max . | . . . . . . . . Secondary Targets . | . . . . . . . . Shots Hit Robots 83 | 17 1 . . 14 31 15 5 Core Hits 24 | 6 . . . 7 8 1 2 Critical Kills . | . . . . . . . . Critical Parts Destroyed 12 | . . . . . 8 3 1 Critical Strikes 13 | . . . . . 9 3 1 Smash 13 | . . . . . 9 3 1 Melee Attacks 63 | . . . . . 38 22 3 Impact 57 | . . . . . 32 22 3 Slashing 6 | . . . . . 6 . . Piercing . | . . . . . . . . Sneak Attacks 13 | . . . . . 5 8 . Combat Hostiles 1 | . . . . . . 1 . Follow-up Attacks 10 | . . . . . 6 4 . Damage Inflicted 3029 | 202 13 . . 145 1271 1171 227 Guns 379 | 202 13 . . 141 23 . . Cannons 58 | . . . . . 58 . . Explosions 121 | . . . . . . . 121 Melee 2467 | . . . . . 1190 1171 106 Ramming 4 | . . . . 4 . . . Kinetic 284 | 127 13 . . 86 58 . . Thermal 153 | 75 . . . 55 23 . . Explosive 121 | . . . . . . . 121 Electromagnetic . | . . . . . . . . Impact 2348 | . . . . . 1071 1171 106 Slashing 119 | . . . . . 119 . . Piercing . | . . . . . . . . Highest Corruption 9 | . . . . . . . 9 Average Corruption 9 | . . . . . . . 9 Corruption Purged . | . . . . . . . . Corruption Blocked . | . . . . . . . . Effects 3 | . . . . . . . 3 Message Errors 2 | . . . . . . . 2 Weapon Failures 1 | . . . . . . . 1 Overload Shots . | . . . . . . . . Overflow Damage 1150 | . . . . . 600 498 52 Projectiles . | . . . . . . . . Explosions 12 | . . . . . . . 12 Melee 1138 | . . . . . 600 498 40 Knockbacks 13 | . . . . . 8 5 . Impact 13 | . . . . . 8 5 . Kinetic . | . . . . . . . . Secondary . | . . . . . . . . Self-Inflicted Damage 104 | . . . . . . . 104 Shots 2 | . . . . . . . 2 Rammed . | . . . . . . . . Targets Rammed 1 | . . . . 1 . . . Kicked 1 | . . . . 1 . . . Crushed . | . . . . . . . . Highest Temperature 18 | . . . . 18 6 . . Average Temperature 7 | . . . . 10 3 . . Received Heat Transfer 351 | . . . . 54 99 9 189 Siege Activations . | . . . . . . . . Martial Activations . | . . . . . . . . Shielding Activations . | . . . . . . . . Robots Disrupted . | . . . . . . . . Combat Hostiles . | . . . . . . . . Robots Corrupted 11 | . . . . . 7 3 1 Combat Hostiles 8 | . . . . . 6 1 1 Parts Fried 15 | . . . . . 9 6 . Impact Corruptions 37 | . . . . . 19 17 1 Robots Melted . | . . . . . . . . Combat Hostiles . | . . . . . . . . Parts Melted . | . . . . . . . . Heat Transferred 350 | 175 . . . 125 50 . . Parts Sabotaged . | . . . . . . . . Parts Stolen . | . . . . . . . . Parts Stripped . | . . . . . . . . Power Chain Reactions . | . . . . . . . . Alert | -11 -10 -10 -10 -9 -8 -7 -7 ------- Run | Yrd Mat Min Exi Min Mat Fac Low Maximum Alert Level . | . . . . . . . . Low Security (%) 100 | 100 100 100 . 100 100 100 . Level 1 . | . . . . . . . . Level 2 . | . . . . . . . . Level 3 . | . . . . . . . . Level 4 . | . . . . . . . . Level 5 . | . . . . . . . . High Security . | . . . . . . . . Max Security . | . . . . . . . . Peak Influence 75 | 5 14 . . 69 75 50 . Initial 3 | . 3 . . . . 3 . Average 10 | 1 3 . . 13 13 5 . Influence Increases 669 | 30 22 . . 171 286 120 40 Destroy 0b10 Robot/C 400 | . . . . 120 180 60 40 Destroy 0b10 Robot/NC 70 | 30 . . . 5 20 15 . Destroy Leader 64 | . . . . 10 40 14 . Allied During Kill 1 | . . . . 1 . . . Trap Triggered on 0b10 20 | . . . . 20 . . . Successful Hack 22 | . 22 . . . . . . Disable Machine 45 | . . . . . 15 30 . Destroy Structure 2 | . . . . . 1 1 . Partial Spotted 15 | . . . . . 15 . . Lose Combat Pursuer 30 | . . . . 15 15 . . Influence Decreases 669 | 25 27 . . 171 278 128 40 Entered New Map 7 | . 2 . . . . 5 . Time Decay 640 | 25 25 . . 169 278 123 20 Lost Part 22 | . . . . 2 . . 20 Squads Dispatched 7 | . 1 . . . 2 4 . Investigation 1 | . 1 . . . . . . Extermination 2 | . . . . . . 2 . Reinforcement 4 | . . . . . 2 2 . Assault . | . . . . . . . . Garrison . | . . . . . . . . Intercept . | . . . . . . . . Searches Triggered . | . . . . . . . . Construction Impeded . | . . . . . . . . Haulers Reinforced 1 | . . . . . . 1 . Active Scanning Responses . | . . . . . . . . Cargo Convoy Interrupts . | . . . . . . . . Stealth | -11 -10 -10 -10 -9 -8 -7 -7 --------- Run | Yrd Mat Min Exi Min Mat Fac Low Distress Signals 2 | . 1 . . . 1 . . Communications Jammed . | . . . . . . . . Distress Signals . | . . . . . . . . Times Spotted 47 | . 6 . . 13 19 6 3 Peak Tracking Total 6 | . 6 . . 4 4 2 3 Tactical Retreats 2 | . . . . 1 1 . . Traps | -11 -10 -10 -10 -9 -8 -7 -7 ------- Run | Yrd Mat Min Exi Min Mat Fac Low Traps Triggered 1 | . 1 . . . . . . Indirectly . | . . . . . . . . Trap Hack Attempts . | . . . . . . . . Triggered . | . . . . . . . . Disarmed . | . . . . . . . . Reprogrammed . | . . . . . . . . Reused 2 | . . . . 2 . . . Traps Extracted . | . . . . . . . . Installed 3 | . . . . 3 . . . Triggered 2 | . . . . 2 . . . Most Traps Carried 2 | . . . . 2 . . . Machines | -11 -10 -10 -10 -9 -8 -7 -7 ---------- Run | Yrd Mat Min Exi Min Mat Fac Low Machines Disabled 3 | . . . . . 1 2 . Max in Single Turn 1 | . . . . . 1 1 . Machines Repaired . | . . . . . . . . Machines Dismantled . | . . . . . . . . Machines Sabotaged . | . . . . . . . . Overloaded Fab Kills . | . . . . . . . . Hacking | -11 -10 -10 -10 -9 -8 -7 -7 --------- Run | Yrd Mat Min Exi Min Mat Fac Low Machines Accessed 7 | . 2 . 4 . . 1 . Terminals 3 | . 2 . . . . 1 . Fabricators . | . . . . . . . . Repair Stations . | . . . . . . . . Recycling Units . | . . . . . . . . Scanalyzers . | . . . . . . . . Garrison Access . | . . . . . . . . Total Hacks 33 | . 5 . 27 . . 1 . Successful 30 | . 3 . 27 . . . . Failed 3 | . 2 . . . . 1 . Catastrophic 1 | . 1 . . . . . . Database Lockouts . | . . . . . . . . Manual 5 | . 4 . 1 . . . . Terminals 6 | . 5 . . . . 1 . Fabricators . | . . . . . . . . Repair Stations . | . . . . . . . . Recycling Units . | . . . . . . . . Scanalyzers . | . . . . . . . . Garrison Access . | . . . . . . . . Terminal Hacks 30 | . 3 . 27 . . . . Record 26 | . . . 26 . . . . Prototype ID Bank 1 | . 1 . . . . . . Branch Access Points 1 | . 1 . . . . . . Alert Level 1 | . 1 . . . . . . Proto ID Catalog 1 | . . . 1 . . . . Fabricator Hacks . | . . . . . . . . Repair Station Hacks . | . . . . . . . . Recycling Unit Hacks . | . . . . . . . . Scanalyzer . | . . . . . . . . Garrison Access Hacks . | . . . . . . . . Unauthorized Hacks . | . . . . . . . . Terminals . | . . . . . . . . Fabricators . | . . . . . . . . Repair Stations . | . . . . . . . . Recycling Units . | . . . . . . . . Scanalyzers . | . . . . . . . . Garrison Access . | . . . . . . . . Data Cores Recovered . | . . . . . . . . Used . | . . . . . . . . Hacking Detections 3 | . 2 . . . . 1 . Full Trace Events . | . . . . . . . . Feedback Events . | . . . . . . . . Feedback Blocked . | . . . . . . . . Robot Schematics Acquired . | . . . . . . . . Robots Built . | . . . . . . . . Authchips . | . . . . . . . . Time . | . . . . . . . . Total Robot Build Rating . | . . . . . . . . Part Schematics Acquired . | . . . . . . . . Parts Built . | . . . . . . . . Authchips . | . . . . . . . . Time . | . . . . . . . . Total Part Build Rating . | . . . . . . . . Part Studies Acquired . | . . . . . . . . Parts Repaired . | . . . . . . . . Time . | . . . . . . . . Parts Recycled . | . . . . . . . . Recycled Matter . | . . . . . . . . Retrieved Matter . | . . . . . . . . Retrieved Components . | . . . . . . . . Parts Scanalyzed . | . . . . . . . . Part Schematics Acquired . | . . . . . . . . Parts Damaged . | . . . . . . . . Bothacking | -11 -10 -10 -10 -9 -8 -7 -7 ------------ Run | Yrd Mat Min Exi Min Mat Fac Low Used RIF Installer . | . . . . . . . . Robots Hacked . | . . . . . . . . Non-combat . | . . . . . . . . Combat . | . . . . . . . . Robot Hacks Applied . | . . . . . . . . Relay Couplers Released . | . . . . . . . . Fabnet Peak Effective % . | . . . . . . . . Robots Rewired . | . . . . . . . . Allies Hacked . | . . . . . . . . Hacks Repelled . | . . . . . . . . Allies | -11 -10 -10 -10 -9 -8 -7 -7 -------- Run | Yrd Mat Min Exi Min Mat Fac Low Total Allies 5 | . . . . 4 1 . . Largest Group 3 | . . . . 3 3 . . Highest-Rated Group 56 | . . . . 56 56 . . Highest-Rated Ally 31 | . . . . 31 31 . . Total Orders . | . . . . . . . . Ally Attacks 14 | . . . . 5 9 . . Total Damage 141 | . . . . 97 44 . . Kills 1 | . . . . 1 . . . Allies Corrupted . | . . . . . . . . Allies Melted . | . . . . . . . . Field Lobotomies 3 | . . . . 2 1 . . Intel | -11 -10 -10 -10 -9 -8 -7 -7 ------- Run | Yrd Mat Min Exi Min Mat Fac Low Active Infowar (turns) 3939 | 175 136 35 704 837 1159 891 2 Terrain 3939 | 175 136 35 704 837 1159 891 2 Robot Analysis Total . | . . . . . . . . Derelict Logs Recovered . | . . . . . . . . Drone Launches . | . . . . . . . . Drone Recoveries . | . . . . . . . . Exploration | -11 -10 -10 -10 -9 -8 -7 -7 ------------- Run | Yrd Mat Min Exi Min Mat Fac Low Turns Passed 4063 | 231 136 35 704 837 1159 891 70 Spaces Moved 2248 | 129 102 29 579 568 474 364 3 Core 14 | 14 . . . . . . . Treads . | . . . . . . . . Legs 2234 | 115 102 29 579 568 474 364 3 Wheels . | . . . . . . . . Hover . | . . . . . . . . Flight . | . . . . . . . . Fastest Speed 50 | 50 120 120 120 120 120 120 120 Average Speed 149 | 117 120 120 120 120 205 191 166 Slowest Speed 260 | 120 120 120 120 190 260 260 190 Overloaded Moves . | . . . . . . . . Propulsion Burnouts . | . . . . . . . . Robots Hopped . | . . . . . . . . Potential Cave-ins . | . . . . . . . . Cave-ins Triggered . | . . . . . . . . Exploration Rate (%) 30 | 7 21 5 91 72 33 10 2 Regions Visited 7 Branch Regions 4 Pre-discovered Areas . | . . . . . . . . Known Exits Taken 1 | . 1 . . . . . . Unknown Exits Taken 6 | 1 . 1 1 1 1 1 . Scrap Searched 2 | . . . . 2 . . . Spaces Dug . | . . . . . . . . Terrain Destroyed 14 | . . . . . . . 14 Melee . | . . . . . . . . Projectile . | . . . . . . . . AOE 14 | . . . . . . . 14 Terrain Rammed . | . . . . . . . . Walls Destroyed . | . . . . . . . . Machines Disabled . | . . . . . . . . Actions | -11 -10 -10 -10 -9 -8 -7 -7 --------- Run | Yrd Mat Min Exi Min Mat Fac Low Total 2779 | 181 109 29 587 695 595 525 58 Wait 363 | 20 5 1 5 91 56 139 46 Move 2241 | 128 101 28 578 567 473 363 3 Hop . | . . . . . . . . Pick Up 37 | 10 . . 2 10 11 3 1 Fast Attach . | . . . . . . . . Attach 19 | 7 . . . 2 6 2 2 Detach 1 | . . . . . 1 . . Swap 14 | . . . 2 3 8 1 . Drop 15 | 1 . . . 5 7 2 . Fire 39 | 15 3 . . 13 5 . 3 Melee 46 | . . . . . 28 15 3 Ram . | . . . . . . . . Kick 1 | . . . . 1 . . . Crush . | . . . . . . . . Escape Stasis . | . . . . . . . . Rewire . | . . . . . . . . Trap 3 | . . . . 3 . . . Miscellaneous . | . . . . . . . . Route ------- -11/Scrapyard -10/Materials -10/Mines -10/Exiles (discovered 2 exits: [*Min x2]) -9/Mines -8/Materials (discovered 2 exits: *Fac / [*Sto]) -7/Factory -7/Lower Caves History --------- Turn | Location | Event 16 | -11/Scrapyard | Discovered new exit (range 14) 232 | -11/Scrapyard | Entered Materials 286 | -10/Materials | Identified exit to Mines 309 | -10/Materials | Build established: Mutant 368 | -10/Materials | Entered Mines 392 | -10/Mines | Deemed a non-threat by the Exiles lab entrance 393 | -10/Mines | Discovered new exit (range 5) 403 | -10/Mines | Entered Exiles 425 | -10/Exiles | Discovered new exit (range 14) 462 | -10/Exiles | Met 8R-AWN 484 | -10/Exiles | Met EX-HEX 563 | -10/Exiles | Met EX-BIN 582 | -10/Exiles | Aligned with FarCom system 583 | -10/Exiles | Given EX-Vault access code 622 | -10/Exiles | Opened EX-Vault 693 | -10/Exiles | Warned to stay clear of 0b10 Research branches 745 | -10/Exiles | Found Field Lobotomy Kit 816 | -10/Exiles | Met EX-DEC 896 | -10/Exiles | Visited The Gauntlet 1088 | -10/Exiles | Discovered new exit (range 14) 1107 | -10/Exiles | Left Exiles lab with Field Lobotomy Kit 1107 | -10/Exiles | Entered Mines 1190 | -9/Mines | Found a hidden stash of uninstalled traps 1415 | -9/Mines | Build established: Skirmisher 1660 | -9/Mines | Assimilated C-30 ARC with FLK Orb 1760 | -9/Mines | Assimilated L-31 Rogue with FLK Orb 1917 | -9/Mines | A weapon hastily lodged in a ceiling crevice suddenly fell to the ground 1934 | -9/Mines | Discovered new exit (range 5) 1944 | -9/Mines | Entered Materials 1944 | -8/Materials | Accompanied by 3 allies 1944 | -8/Materials | Evolved 4 slots: Propulsion x2, Utility x1, Weapon x1 1949 | -8/Materials | Led the pair of lost Derelicts to an unsafe place 2046 | -8/Materials | Lost 3 allies 2124 | -8/Materials | Assimilated Y-45 Defender with FLK Orb 2429 | -8/Materials | Discovered new exit (range 8) 2480 | -8/Materials | Build established: Scavenger-Assassin 3052 | -8/Materials | Discovered new exit (range 11) 3103 | -8/Materials | Entered Factory 3103 | -7/Factory | Evolved 2 slots: Power x1, Propulsion x1 3968 | -7/Factory | Discovered new exit (range 14) 3994 | -7/Factory | Entered Lower Caves 4039 | -7/Lower Caves | Core integrity fell below 50% 4056 | -7/Lower Caves | Core integrity fell below 20% 4064 | -7/Lower Caves | Destroyed by L-41 Fighter with Axe Last Messages --------------- 04007_ Acquired Corrupted Aluminum Leg. 04008_ Integrated Corrupted Aluminum Leg (+9). 04009_ Corrupted Particle Gun self-destruct mechanism malfunctions. 04009_ Acquired 10 matter. 04014_ Deuterium Engine destroyed. 04020_ Aluminum Leg destroyed. 04021_ A7,7ULP UXGD EUQ